bitfinex/quotes_SOLUSD_20251013
["timestamp","ask_amount","ask_price","bid_price","bid_amount"]
[1760365858696,2.70256196,193.23,193.21,9.00796381]
[1760365858856,9.00796381,193.27,193.21,9.00796381]
[1760365859062,9.00796381,193.23,193.14,0.66]
[1760365859281,23.50184253,193.25,193.14,0.66]
[1760365859282,9.00796381,193.22,193.15,9.00796381]
[1760365859589,32.50980634,193.25,193.17,9.00796381]
[1760365859769,20.8,193.22,193.17,9.00796381]
[1760365859957,20.8,193.22,193.16,9.66796381]
[1760365860160,0.09781378,193.18,193.09,12.94698622]
[1760365860368,0.09781378,193.18,193.03,20.8]
[1760365860369,0.09781378,193.18,193.11,9.66796381]
[1760365860565,20.8,193.16,193.11,0.66]
[1760365860896,20.8,193.12,193.05,9.00796381]
[1760365861186,20.8,193.17,193.1,9.00796381]
[1760365861367,0.09781378,193.18,193.12,9.00796381]
[1760365861565,0.09781378,193.18,192.97,30.8764752]
[1760365861566,0.09781378,193.18,193.09,9.00796381]
[1760365861784,0.09781378,193.18,193.11,0.66]
[1760365862186,0.09781378,193.18,193.11,9.00796381]
[1760365862367,0.09781378,193.18,193.14,9.00796381]
[1760365862557,0.09781378,193.18,193.15,9.00796381]
[1760365862761,0.09781378,193.18,193.08,0.66]
[1760365862762,9.10577759,193.18,193.08,0.66]
[1760365862979,9.00796381,193.17,193.08,0.66]
[1760365863189,9.00796381,193.17,193.07,9.00796381]
[1760365863190,9.00796381,193.14,193.07,9.00796381]
[1760365863490,20.8,193.15,193.09,9.00796381]
[1760365863687,0.09781378,193.18,193.09,9.00796381]
[1760365863688,0.09781378,193.18,193.1,0.66]
[1760365863888,0.09781378,193.18,193.17,9.00796381]
[1760365864183,0.10422064,193.19,193.17,9.66796381]
[1760365864392,0.10422064,193.19,193.18,0.66]
[1760365864601,0.10422064,193.19,193.11,0.51783956]
[1760365864889,0.10422064,193.19,193.14,9.00796381]
[1760365865188,0.10422064,193.19,193.08,18.12717464]
[1760365865493,0.10422064,193.19,193.18,9.00796381]
[1760365865671,0.09481143,193.2,193.18,14.18448311]
[1760365865860,0.09481143,193.2,193.19,9.66796381]
[1760365866191,0.09481143,193.2,193.19,0.66]
[1760365866364,0.09481143,193.2,193.19,9.66796381]
[1760365866565,0.09481143,193.2,193.16,0.66]
[1760365866871,0.09481143,193.2,193.01,25.90499516]
[1760365866872,20.8,193.17,193.06,0.66]
[1760365867070,9.00796381,193.14,193.07,9.00796381]
[1760365867297,9.00796381,193.14,192.93,5.18322707]
[1760365867298,0.66,193.13,193.03,9.00796381]
[1760365867618,0.66,193.13,193.05,6.00953364]
[1760365867619,20.8,193.13,193.05,6.00953364]
[1760365867803,0.75481143,193.2,193.09,6.00953364]
[1760365867963,20.89481143,193.2,193.13,6.00953364]
[1760365868274,20.89481143,193.2,193.14,6.00953364]
[1760365868488,0.09481143,193.2,193.15,6.00953364]
[1760365868690,0.66,193.19,193.13,6.00953364]
[1760365868864,0.66,193.19,193.09,0.66]
[1760365868865,6.00953364,193.18,193.11,6.00953364]
[1760365869065,6.00953364,193.15,193.05,0.66]
[1760365869264,26.80953364,193.13,193.05,0.66]
[1760365869484,20.8,193.13,193.03,6.00953364]
[1760365869683,6.00953364,193.15,193.07,6.00953364]
[1760365869885,20.8,193.18,193.08,0.66]
[1760365870089,26.80953364,193.19,193.12,6.00953364]
[1760365870261,6.00953364,193.17,193.08,0.66]
[1760365870589,0.09481143,193.2,193.14,6.00953364]
[1760365870772,0.09481143,193.2,193.11,0.66]
[1760365870975,0.09481143,193.2,193.14,6.00953364]
[1760365870976,20.89481143,193.2,193.14,6.00953364]
[1760365871178,0.66,193.19,193.07,0.66]
[1760365871390,6.00953364,193.14,193.07,0.66]
[1760365871703,20.8,193.15,193.07,0.66]
[1760365871912,6.00953364,193.11,193.03,0.66]
[1760365872210,27.46953364,193.11,193.02,6.00953364]
[1760365872496,20.8,193.08,193.02,6.72953364]
[1760365872701,6.00953364,193.07,192.97,0.72]
[1760365873002,20.8,193.04,192.95,6.00953364]
[1760365873300,6.00953364,192.99,192.92,6.00345386]
[1760365873508,20.8,193.02,192.92,6.00345386]
[1760365873684,20.8,193.01,192.95,6.00953364]
[1760365874291,6.00953364,193.03,192.95,6.00953364]
[1760365874482,6.00953364,193.03,192.94,6.72953364]
[1760365874793,6.00953364,193.01,192.92,5.28343885]
[1760365874980,6.00953364,192.99,192.92,5.28343885]
[1760365875202,6.00953364,192.99,192.92,0.1]
[1760365875584,6.00953364,192.97,192.92,0.1]
[1760365875783,20.8,193.0,192.92,6.00333027]
[1760365876102,6.00953364,193.04,192.94,6.00953364]
[1760365876418,6.00953364,193.08,192.98,6.00953364]
[1760365876618,0.71,193.11,193.0,6.00953364]
[1760365876910,6.00953364,193.07,192.92,44.15954838]
[1760365877085,6.00953364,193.05,192.96,6.72953364]
[1760365877287,0.71,193.04,192.94,6.00953364]
[1760365877481,6.00953364,193.03,192.94,5.18295843]
[1760365877696,20.8,193.02,192.92,0.1]
[1760365877898,0.71,193.01,192.92,0.1]
[1760365878112,21.51,193.01,192.92,0.1]
[1760365878284,6.00953364,192.95,192.92,0.1]
[1760365878486,20.8,192.97,192.92,0.1]
[1760365878698,6.00953364,192.96,192.92,0.1]
[1760365879081,6.00953364,192.95,192.92,0.1]
[1760365879284,20.8,192.97,192.92,0.1]
[1760365879480,0.71,193.04,192.94,5.18295843]
[1760365879714,10.87647521,193.07,192.95,0.72]
[1760365879887,6.00953364,193.04,192.96,6.00953364]
[1760365880205,0.09675944,192.97,192.94,18.14035451]
[1760365880404,0.09675944,192.97,192.92,0.1]
[1760365881008,0.09675944,192.97,192.94,6.00953364]
[1760365881204,0.09675944,192.97,192.96,6.00953364]
[1760365881416,0.10526498,193.0,192.97,6.00953364]
[1760365881625,0.71,193.13,192.99,24.14518832]
[1760365881789,1e-08,193.03,193.02,6.00953364]
[1760365881989,6.00953364,193.15,193.02,6.00953364]
[1760365882303,19.99999999,193.31,193.03,6.72953364]
[1760365882504,0.71,193.23,193.17,6.00953364]
[1760365882708,6.71953364,193.25,193.17,6.00953364]
[1760365883013,0.71,193.25,193.17,6.00953364]
[1760365883215,12.92860398,193.37,193.08,26.70600885]
[1760365883393,0.71,193.3,193.2,6.00953364]
[1760365883588,21.51,193.29,193.19,11.18578499]
[1760365883807,6.00953364,193.21,193.12,0.72]
[1760365884006,21.51,193.25,193.16,6.00953364]
[1760365884306,6.00953364,193.22,193.12,0.72]
[1760365884510,6.00953364,193.21,193.12,0.72]
[1760365884808,6.00953364,193.25,193.18,6.00953364]
[1760365884986,6.00953364,193.24,193.17,6.00953364]
[1760365885189,2.70171466,193.28,193.21,6.00953364]
[1760365885404,6.00953364,193.3,193.22,6.00953364]
[1760365885587,6.71953364,193.29,193.22,11.18498131]
[1760365885793,6.71953364,193.29,193.18,13.66074987]
[1760365885794,6.00953364,193.28,193.21,6.00953364]
[1760365886106,6.00953364,193.23,193.16,6.00953364]
[1760365886412,2.70150041,193.31,193.22,6.00953364]
[1760365886710,6.00953364,193.24,193.17,0.72]
[1760365887004,6.00953364,193.21,193.14,6.00953364]
[1760365887207,6.00953364,193.18,193.11,11.18792937]
[1760365887412,6.00953364,193.18,193.08,0.72]
[1760365887413,6.00953364,193.18,193.09,5.17889779]
[1760365887615,6.00953364,193.18,193.11,6.00953364]
[1760365888111,6.71953364,193.17,193.09,5.1789321]
[1760365888305,20.8,193.12,193.04,0.72]
[1760365888487,27.51953364,193.12,193.04,6.00953364]
[1760365888812,10.87647521,193.18,193.04,0.72]
[1760365888813,21.51,193.15,193.04,0.72]
[1760365888993,6.00953364,193.13,193.06,6.00953364]
[1760365889194,6.00953364,193.13,193.04,0.72]
[1760365889512,6.00953364,193.11,193.04,6.72953364]
[1760365889711,20.8,193.15,193.06,6.00953364]
[1760365889894,0.71,193.16,193.09,6.00953364]
[1760365890100,6.00953364,193.15,193.06,0.72]
[1760365890295,6.00953364,193.12,193.02,0.72]
[1760365890516,6.00953364,193.1,193.01,6.00953364]
[1760365890705,0.71,193.09,193.0,6.00953364]
[1760365891008,26.80953364,193.09,193.01,6.00953364]
[1760365891194,6.00953364,193.06,192.99,6.00953364]
[1760365891592,0.71,193.08,193.0,11.19088079]
[1760365891802,20.8,193.09,193.03,6.00953364]
[1760365892197,20.8,193.21,193.04,0.72]
[1760365892406,20.8,193.21,193.0,18.13471502]
[1760365892407,6.00953364,193.12,193.01,0.72]
[1760365892604,6.00953364,193.1,193.03,6.00953364]
[1760365892812,0.71,193.12,193.04,6.00953364]
[1760365893114,6.00953364,193.13,193.05,6.00953364]
[1760365893308,6.00953364,193.12,193.05,6.00953364]
[1760365893815,6.00953364,193.12,193.04,0.66]
[1760365894016,6.00953364,193.06,192.99,6.00953364]
[1760365894186,21.51,193.08,193.0,6.00953364]
[1760365894386,6.00953364,193.06,192.99,6.00953364]
[1760365894587,6.00953364,193.04,192.95,5.18268981]
[1760365894786,6.00953364,193.03,192.95,5.18268981]
[1760365894997,0.71,193.02,192.94,5.18294835]
[1760365895297,6.00953364,193.0,192.94,5.18294835]
[1760365895718,27.51953364,193.0,192.92,0.1]
[1760365895892,6.00953364,192.98,192.92,5.28349211]
[1760365896215,6.00953364,192.98,192.92,0.1]
[1760365896511,6.71953364,192.98,192.92,0.1]
[1760365896818,10.87647521,193.05,192.93,6.66953364]
[1760365896819,0.71,193.05,192.93,6.66953364]
[1760365896998,6.00953364,193.02,192.94,6.00953364]
[1760365897204,6.00953364,192.99,192.92,11.29293167]
[1760365897520,6.00953364,192.97,192.92,0.1]
[1760365898004,0.71,192.96,192.92,0.1]
[1760365898596,20.8,193.0,192.92,0.1]
[1760365898792,6.00953364,192.99,192.92,5.28345477]
[1760365899016,0.71,193.08,192.98,6.00953364]
[1760365899215,0.71,193.12,193.02,6.00953364]
[1760365899403,6.00953364,193.11,193.03,6.00953364]
[1760365899720,6.00953364,193.11,193.04,5.18027351]
[1760365899910,21.51,193.12,192.9,10.87647521]
[1760365899911,6.00953364,193.05,192.9,10.87647521]
[1760365900121,19.99999999,193.04,192.84,6.00953364]
[1760365900309,20.8,192.97,192.89,6.00953364]
[1760365900510,20.8,192.97,192.87,0.66]
[1760365900703,6.71953364,193.0,192.92,0.76]
[1760365901023,26.80953364,193.03,192.93,6.00953364]
[1760365901190,6.00953364,192.99,192.92,0.1]
[1760365901391,6.00953364,192.95,192.92,0.1]
[1760365901817,6.00953364,192.93,192.92,0.1]
[1760365902117,16.88600885,192.93,192.92,0.1]
[1760365902417,6.71953364,192.93,192.92,0.1]
[1760365902791,38.39600885,192.93,192.92,0.1]
[1760365902992,0.71,192.93,192.92,0.1]
[1760365903197,6.72953364,192.93,192.92,0.1]
[1760365903405,21.52,192.97,192.92,5.28338397]
[1760365903607,6.00953364,192.95,192.92,5.28338397]
[1760365903806,0.10269943,193.05,192.93,6.00953364]
[1760365904018,6.00953364,193.02,192.94,6.00953364]
[1760365904216,6.00953364,193.02,192.95,6.00953364]
[1760365904526,6.00953364,193.03,192.94,0.66]
[1760365904738,0.72,193.02,192.93,6.00953364]
[1760365905022,0.72,193.02,192.92,18.90212334]
[1760365905229,6.00953364,193.03,192.96,6.00953364]
[1760365905599,21.62269943,193.05,192.96,6.00953364]
[1760365905911,21.62269943,193.05,192.97,5.18215266]
[1760365906125,21.62269943,193.05,193.0,6.00953364]
[1760365906126,0.10269943,193.05,193.0,6.00953364]
[1760365906629,20.8,192.98,192.92,0.1]
[1760365906931,6.00953364,192.95,192.88,14.46345317]
[1760365907144,6.00953364,192.96,192.89,11.19381482]
[1760365907429,6.00953364,192.95,192.89,5.18428118]
[1760365907728,20.8,192.99,192.92,6.00953364]
[1760365907901,26.80953364,192.99,192.92,6.00953364]
[1760365908102,20.8,192.99,192.93,6.00953364]
[1760365908318,20.8,192.99,192.9,0.66]
[1760365908517,0.72,193.01,192.95,6.00953364]
[1760365908822,26.80953364,193.02,192.95,6.00953364]
[1760365909000,6.00953364,193.01,192.93,0.66]
[1760365909197,6.00953364,192.98,192.89,5.18426906]
[1760365909413,6.00953364,192.96,192.88,7.79391953]
[1760365909720,6.00953364,192.95,192.89,5.18430193]
[1760365909923,6.00953364,192.92,192.89,5.18430193]
[1760365910226,6.00953364,192.9,192.88,7.79391953]
[1760365910521,17.57600885,192.89,192.88,7.07391953]
[1760365910727,31.67647521,192.86,192.73,6.00953364]
[1760365910909,31.67647521,192.86,192.77,0.67]
[1760365911227,27.40953364,192.86,192.77,5.18730118]
[1760365911423,38.28600885,192.86,192.75,0.67]
[1760365911742,28.68065085,192.86,192.71,5.18914362]
[1760365911906,20.8,192.77,192.61,0.67]
[1760365912105,6.00953364,192.68,192.62,0.67]
[1760365912301,6.00953364,192.68,192.64,2.70166117]
[1760365912533,20.8,192.73,192.65,0.67]
[1760365912827,6.00953364,192.76,192.7,6.00953364]
[1760365913026,20.8,192.79,192.71,6.00953364]
[1760365913233,10.87647521,192.78,192.67,0.67]
[1760365913536,6.00953364,192.74,192.67,0.67]
[1760365913708,6.00953364,192.79,192.72,6.00953364]
[1760365914045,6.00953364,192.79,192.68,18.16483288]
[1760365914046,6.00953364,192.8,192.71,0.67]
[1760365914208,10.87647521,192.87,192.71,0.67]
[1760365914402,0.6,192.88,192.71,0.67]
[1760365914403,0.6,192.88,192.81,6.00953364]
[1760365914630,6.00953364,192.87,192.81,6.00953364]
[1760365914932,6.00953364,192.84,192.78,6.00953364]
[1760365915161,6.00953364,192.85,192.75,0.67]
[1760365915443,8.62511029,192.86,192.79,8.62511029]
[1760365916530,8.62511029,192.88,192.82,8.62511029]
[1760365916747,8.62511029,192.91,192.85,8.62511029]
[1760365917211,8.62511029,192.87,192.78,13.63763011]
[1760365917418,20.8,192.89,192.81,8.62511029]
[1760365917613,8.62511029,192.85,192.78,12.96763011]
[1760365917850,10.87647521,192.9,192.81,8.62511029]
[1760365918144,2.70655777,192.91,192.82,0.67]
[1760365918324,10.87647521,192.96,192.87,8.62511029]
[1760365918528,2.706292,192.9,192.82,0.67]
[1760365918831,8.62511029,192.93,192.87,8.62511029]
[1760365919032,5.1805536,193.03,192.89,8.62511029]
[1760365919241,2.70607295,192.94,192.89,0.67]
[1760365919422,0.6,193.04,192.93,8.62511029]
[1760365919626,10.87647521,192.93,192.84,0.67]
[1760365919833,8.62511029,192.95,192.89,8.62511029]
[1760365920127,0.09642265,192.9,192.89,8.62511029]
[1760365920332,0.09642265,192.9,192.89,9.29511029]
[1760365920636,0.09638037,192.91,192.89,9.29511029]
[1760365920942,0.09638037,192.91,192.9,9.29511029]
[1760365921121,0.11101046,192.92,192.9,9.29511029]
[1760365921310,2.70569083,193.02,192.91,9.29511029]
[1760365921639,22.06438471,193.18,192.85,64.8757065]
[1760365921640,9.31511029,193.11,193.01,8.62511029]
[1760365921937,9.31511029,193.11,193.04,8.62511029]
[1760365921938,2.70424475,193.11,193.04,8.62511029]
[1760365922145,11.32935504,193.11,193.05,8.62511029]
[1760365922442,0.2,193.1,193.06,8.62511029]
[1760365922615,0.2,193.1,193.02,18.13283596]
[1760365922814,0.2,193.1,193.07,8.62511029]
[1760365923039,0.2,193.1,193.03,0.67]
[1760365923354,0.2,193.1,192.92,20.8]
[1760365923355,8.62511029,193.06,192.92,20.8]
[1760365923548,8.62511029,193.04,192.98,8.62511029]
[1760365924037,0.69,193.09,193.01,8.62511029]
[1760365924239,0.2,193.1,193.05,8.62511029]
[1760365924429,0.2,193.1,193.09,8.62511029]
[1760365924623,0.2,193.1,193.08,8.62511029]
[1760365924824,0.2,193.1,192.95,58.93941434]
[1760365924825,0.2,193.1,193.0,10.57]
[1760365925140,0.2,193.1,193.06,8.62511029]
[1760365925445,20.8,193.16,193.02,0.67]
[1760365925446,0.69,193.23,193.09,8.62511029]
[1760365925623,0.69,193.22,193.03,20.8]
[1760365925941,8.62511029,193.18,193.12,8.62511029]
[1760365926150,10.87647521,193.21,193.14,8.62511029]
[1760365926332,29.42511029,193.2,193.15,8.62511029]
[1760365926530,8.62511029,193.16,193.1,5.17860489]
[1760365926751,11.56647521,193.19,193.1,13.80371518]
[1760365927047,8.62511029,193.17,193.11,8.62511029]
[1760365927239,8.62511029,193.16,193.1,13.80371518]
[1760365927456,2.70248331,193.21,193.14,8.62511029]
[1760365927618,2.70248331,193.21,193.19,8.62511029]
[1760365927815,8.82511029,193.25,193.18,5.17628127]
[1760365927816,0.2,193.25,193.18,5.17628127]
[1760365928015,0.2,193.25,193.21,8.62511029]
[1760365928244,0.2,193.25,193.23,8.62511029]
[1760365928444,0.2,193.25,193.24,8.62511029]
[1760365928646,8.82511029,193.25,193.17,5.17656737]
[1760365928853,8.62511029,193.23,193.16,0.67]
[1760365929019,0.2,193.25,193.19,8.62511029]
[1760365929216,0.2,193.25,193.2,8.62511029]
[1760365929425,0.2,193.25,193.21,9.06279601]
[1760365929751,0.2,193.25,193.17,0.67]
[1760365929752,0.2,193.25,193.2,5.17598343]
[1760365929922,0.2,193.25,193.21,0.67]
[1760365930233,9.26279601,193.25,193.17,0.67]
[1760365930431,9.26279601,193.25,193.17,14.90952577]
[1760365930632,9.06279601,193.23,193.15,9.06279601]
[1760365930837,9.06279601,193.21,193.11,12.94570155]
[1760365931020,9.06279601,193.15,193.08,0.67]
[1760365931219,32.36647521,193.21,193.08,0.67]
[1760365931220,0.69,193.21,193.08,0.67]
[1760365931427,9.06279601,193.15,193.08,0.67]
[1760365931817,20.8,193.12,193.04,0.67]
[1760365932040,9.06279601,193.11,193.02,9.06279601]
[1760365932237,9.06279601,193.1,193.02,9.06279601]
[1760365932547,20.8,193.12,193.01,0.67]
[1760365932548,9.06279601,193.08,193.01,0.67]
[1760365932843,9.06279601,193.08,192.75,22.06438471]
[1760365932844,10.87647521,193.09,192.94,9.9]
[1760365933056,10.87647521,193.09,193.01,9.06279601]
[1760365933057,9.06279601,193.09,193.01,9.06279601]
[1760365933434,9.06279601,193.07,193.0,0.69]
[1760365933922,20.8,193.09,193.01,5.1810787]
[1760365934122,10.87647521,193.12,193.01,14.24387471]
[1760365934355,20.8,193.15,193.07,9.06279601]
[1760365934926,20.8,193.15,193.06,0.69]
[1760365935231,9.06279601,193.14,193.06,9.75279601]
[1760365935760,0.69,193.19,193.1,9.06279601]
[1760365935948,9.06279601,193.2,193.1,5.86865191]
[1760365936244,9.06279601,193.18,193.1,14.93144792]
[1760365936451,9.06279601,193.2,193.12,9.06279601]
[1760365936621,9.06279601,193.14,193.04,0.69]
[1760365936820,9.06279601,193.14,193.05,9.06279601]
[1760365937043,9.06279601,193.14,193.06,0.69]
[1760365937254,9.06279601,193.14,193.04,9.75279601]
[1760365937255,21.49,193.14,193.04,9.75279601]
[1760365937629,21.49,193.14,193.04,0.69]
[1760365937852,20.8,193.14,193.06,9.06279601]
[1760365938047,9.06279601,193.13,193.06,9.06279601]
[1760365938364,20.8,193.14,193.06,14.24251823]
[1760365938530,9.06279601,193.15,193.07,0.69]
[1760365938729,20.8,193.17,193.08,9.06279601]
[1760365938934,9.06279601,193.22,193.12,9.06279601]
[1760365939150,9.06279601,193.21,193.12,9.06279601]
[1760365939448,9.06279601,193.24,193.16,9.06279601]
[1760365939840,9.06279601,193.24,193.13,0.69]
[1760365940051,0.09682005,193.17,193.15,9.06279601]
[1760365940353,0.09682005,193.17,193.14,5.17759138]
[1760365940646,0.09682005,193.17,193.16,9.75279601]
[1760365940844,0.09682005,193.17,193.06,5.17973686]
[1760365941047,0.09682005,193.17,193.06,18.12907903]
[1760365941268,9.06279601,193.15,193.07,9.75279601]
[1760365941629,0.09682005,193.17,193.08,0.69]
[1760365941951,9.06279601,193.15,193.09,5.1789321]
[1760365942152,10.87647521,193.06,192.96,0.69]
[1760365942354,9.06279601,193.01,192.96,0.69]
[1760365942537,10.87647521,193.06,192.88,0.69]
[1760365942538,9.06279601,192.97,192.88,0.69]
[1760365942725,20.8,192.95,192.85,0.69]
[1760365943047,9.06279601,192.87,192.75,0.69]
[1760365943243,20.8,192.85,192.75,0.69]
[1760365943428,9.06279601,192.8,192.72,5.18887505]
[1760365943631,9.06279601,192.76,192.7,5.8791524]
[1760365943966,9.06279601,192.82,192.74,9.06279601]
[1760365944128,9.06279601,192.82,192.73,5.18860582]
[1760365944129,0.69,192.9,192.76,9.06279601]
[1760365944442,9.06279601,192.83,192.74,9.06279601]
[1760365944634,20.8,192.86,192.76,9.06279601]
[1760365944958,19.99999999,193.01,192.82,9.06279601]
[1760365945131,9.06279601,192.89,192.82,0.69]
[1760365945332,10.87647521,192.91,192.73,64.90314947]
[1760365945543,9.06279601,192.83,192.74,0.69]
[1760365946056,9.06279601,192.83,192.76,5.18779829]
[1760365946358,0.69,192.92,192.77,9.75279601]
[1760365946528,9.06279601,192.86,192.77,9.75279601]
[1760365946726,31.67647521,192.91,192.79,9.06279601]
[1760365946949,9.06279601,192.89,192.79,9.06279601]
[1760365947336,9.06279601,192.89,192.77,0.69]
[1760365947542,31.67647521,192.91,192.77,0.69]
[1760365947776,0.69,192.97,192.82,9.06279601]
[1760365948060,0.69,192.97,192.87,18.14693834]
[1760365948276,5.17941505,193.08,192.9,9.06279601]
[1760365948433,9.06279601,192.97,192.81,19.99999999]
[1760365948632,9.06279601,192.97,192.86,0.69]
[1760365948633,9.06279601,192.93,192.86,0.69]
[1760365948828,0.69,193.03,192.86,0.69]
[1760365949055,9.06279601,192.97,192.86,0.69]
[1760365949567,0.69,193.07,192.93,9.06279601]
[1760365949735,0.69,193.07,192.86,21.49]
[1760365949736,0.69,193.07,192.97,9.06279601]
[1760365949941,9.06279601,193.05,192.97,9.06279601]
[1760365950351,9.06279601,193.08,192.99,9.06279601]
[1760365950661,9.06279601,193.07,192.98,9.75279601]
[1760365950962,10.87647521,193.11,193.0,9.06279601]
[1760365951260,0.09682005,193.17,193.06,9.06279601]
[1760365951458,9.15961606,193.17,193.08,9.06279601]
[1760365951662,9.15961606,193.17,192.97,19.99999999]
[1760365951663,9.06279601,193.13,193.04,0.69]
[1760365952056,9.06279601,193.11,193.01,0.69]
[1760365952238,9.06279601,193.09,193.01,9.75279601]
[1760365952558,0.09682005,193.17,193.05,9.06279601]
[1760365952559,9.06279601,193.13,193.05,9.06279601]
[1760365952858,10.87647521,193.16,193.06,0.69]
[1760365953057,9.06279601,193.14,193.06,0.69]
[1760365953257,9.06279601,193.13,193.0,18.13471502]
[1760365953434,9.06279601,193.13,193.05,9.06279601]
[1760365953835,9.06279601,193.15,193.07,9.06279601]
[1760365954250,9.06279601,193.15,193.07,14.24215371]
[1760365954560,9.06279601,193.15,193.07,5.1793577]
[1760365955262,10.87647521,193.16,193.07,18.81802916]
[1760365955440,9.15758258,193.17,193.09,9.06076253]
[1760365955853,0.09682005,193.17,193.11,9.06076253]
[1760365956055,9.06076253,193.16,193.07,5.8693577]
[1760365956264,9.06076253,193.12,193.03,0.69]
[1760365956450,9.06076253,193.12,193.04,9.06076253]
[1760365956759,0.09682005,193.17,193.08,9.06076253]
[1760365957147,0.09682005,193.17,193.12,9.06076253]
[1760365957458,0.09682005,193.17,193.14,9.06076253]
[1760365957685,0.09682005,193.17,193.16,9.06076253]
[1760365957851,0.10187475,193.18,193.16,9.75076253]
[1760365958053,0.10187475,193.18,193.17,0.69]
[1760365958247,0.10187475,193.18,193.16,5.17704997]
[1760365958469,0.10187475,193.18,193.13,9.06076253]
[1760365958642,0.10187475,193.18,193.15,9.06076253]
[1760365959081,0.10187475,193.18,193.17,9.06076253]
[1760365959568,0.09370618,193.2,193.17,9.75076253]
[1760365959743,0.09355558,193.23,193.2,9.06076253]
[1760365959942,0.09355558,193.23,193.2,28.00152506]
[1760365960156,0.10254921,193.28,193.22,29.86076253]
[1760365960355,9.75076253,193.42,193.27,9.06076253]
[1760365960585,0.69,193.45,193.37,9.06076253]
[1760365960737,2.69665547,193.55,193.38,0.69]
[1760365960941,0.69,193.54,193.47,9.06076253]
[1760365961245,0.2,193.62,193.38,0.69]
[1760365961246,9.06076253,193.52,193.38,0.69]
[1760365961450,24.22653603,193.6,193.36,2.6963355]
[1760365961451,0.69,193.51,193.36,2.6963355]
[1760365961667,9.06076253,193.48,193.39,9.06076253]
[1760365962056,9.06076253,193.48,193.36,2.6963355]
[1760365962057,11.75925793,193.5,193.41,9.06076253]
[1760365962375,0.69,193.49,193.36,2.6963355]
[1760365962575,0.66,193.48,193.38,9.06076253]
[1760365962750,9.06076253,193.46,193.38,9.06076253]
[1760365962948,12.41974427,193.48,193.4,9.06076253]
[1760365963174,9.06076253,193.46,193.39,9.06076253]
[1760365963383,9.0462505,193.47,193.39,9.0462505]
[1760365963560,9.0462505,193.44,193.36,7.86795932]
[1760365963760,9.0462505,193.43,193.36,16.91420982]
[1760365963964,23.49898174,193.48,193.39,9.0462505]
[1760365964160,9.0462505,193.47,193.39,9.0462505]
[1760365964345,23.49898174,193.48,193.39,9.0462505]
[1760365964346,23.49898174,193.48,193.39,5.17070189]
[1760365964548,9.0462505,193.47,193.39,5.17070189]
[1760365964872,9.0462505,193.47,193.37,5.17125292]
[1760365965073,32.54523224,193.48,193.37,5.17125292]
[1760365965275,9.0462505,193.45,193.37,5.17125292]
[1760365965485,9.0462505,193.45,193.36,2.6963355]
[1760365965486,9.0462505,193.42,193.36,2.6963355]
[1760365965788,9.0462505,193.38,193.36,2.6963355]
[1760365966091,0.66,193.37,193.36,2.6963355]
[1760365966259,10.87647521,193.43,193.36,2.6963355]
[1760365966260,5.16998423,193.43,193.36,2.6963355]
[1760365966458,20.8,193.37,193.36,2.6963355]
[1760365966769,21.46,193.37,193.31,9.0462505]
[1760365966981,32.92079987,193.49,193.32,9.0462505]
[1760365967179,20.8,193.43,193.36,9.0462505]
[1760365967354,20.8,193.43,193.29,5.17342639]
[1760365967355,9.0462505,193.38,193.29,5.17342639]
[1760365967555,10.87647521,193.43,193.3,9.0462505]
[1760365967771,20.8,193.38,193.28,9.0462505]
[1760365967974,0.67,193.37,193.28,9.0462505]
[1760365968182,0.67,193.37,193.24,18.11219208]
[1760365968481,0.67,193.37,193.27,9.0462505]
[1760365968677,0.67,193.37,193.28,9.0462505]
[1760365968879,0.67,193.42,193.35,9.0462505]
[1760365969380,0.67,193.42,193.36,9.0462505]
[1760365969563,2.69898174,193.48,193.38,9.0462505]
[1760365969876,20.8,193.45,193.39,9.0462505]
[1760365970177,9.7162505,193.52,193.44,9.0462505]
[1760365970380,9.0462505,193.49,193.42,9.0462505]
[1760365970680,11.74447813,193.51,193.43,9.0462505]
[1760365970860,9.7162505,193.52,193.44,9.0462505]
[1760365971184,9.0462505,193.48,193.4,9.0462505]
[1760365971476,30.5162505,193.49,193.41,9.0462505]
[1760365971686,9.0462505,193.48,193.41,9.0462505]
[1760365971849,2.69838495,193.5,193.43,9.0462505]